[Event "Championnat d'Europe Rapide"]
[Date "2024.12.08"]
[White "Vuckovic, Zarko"]
[Black "Mamedov, Rauf"]
[WhiteElo "2334"]
[BlackElo "2656"]
[Round "7.17"]
[Result "0-1"]
[TimeControl "900+10"]

1. e4 {[%emt 00:00:01] [%clk 00:15:19]} c5 {[%emt 00:00:03] [%clk 00:15:19]} 2.
Nf3 {[%clk 00:15:27]} Nc6 {[%emt 00:00:07] [%clk 00:15:23]} 3. d4 {[%emt
00:00:01] [%clk 00:15:35]} cxd4 {[%emt 00:00:02] [%clk 00:15:31]} 4. Nxd4 {[%emt
00:00:01] [%clk 00:15:44]} g6 {[%emt 00:00:06] [%clk 00:15:35]} 5. c4 {[%emt
00:00:06] [%clk 00:15:48]} Nf6 {[%emt 00:00:06] [%clk 00:15:39]} 6. Nc3 {[%emt
00:00:01] [%clk 00:15:56]} d6 {[%emt 00:00:03] [%clk 00:15:47]} 7. Be2 {[%emt
00:00:04] [%clk 00:16:02]} Nxd4 {[%emt 00:00:04] [%clk 00:15:53]} 8. Qxd4 {[%emt
00:00:02] [%clk 00:16:10]} Bg7 {[%emt 00:00:02] [%clk 00:16:02]} 9. Bd2 {[%clk
00:16:18]} O-O {[%emt 00:00:02] [%clk 00:16:10]} 10. Qe3 {[%clk 00:16:27]} Bg4
{[%emt 00:00:47] [%clk 00:15:33]} 11. O-O {[%emt 00:00:28] [%clk 00:16:09]} a6
{[%emt 00:00:12] [%clk 00:15:31]} 12. Rac1 {[%emt 00:00:34] [%clk 00:15:44]} Rc8
{[%emt 00:00:02] [%clk 00:15:40]} 13. b3 {[%emt 00:00:03] [%clk 00:15:51]} Re8
{[%emt 00:00:19] [%clk 00:15:31]} 14. Rfd1 {[%emt 00:02:14] [%clk 00:13:46]} h5
{[%emt 00:01:16] [%clk 00:14:26]} 15. f3 {[%emt 00:02:54] [%clk 00:11:02]} Bd7
{[%emt 00:00:08] [%clk 00:14:27]} 16. Qf2 {[%emt 00:00:01] [%clk 00:11:11]} Bc6
{[%emt 00:01:07] [%clk 00:13:30]} 17. a4 {[%emt 00:00:53] [%clk 00:10:29]} a5
{[%emt 00:00:12] [%clk 00:13:27]} 18. Be3 {[%emt 00:00:30] [%clk 00:10:10]} Nd7
{[%clk 00:13:36]} 19. c5 {[%emt 00:02:43] [%clk 00:07:37]} dxc5 {[%emt 00:00:09]
[%clk 00:13:37]} 20. Bxc5 {[%emt 00:00:02] [%clk 00:07:46]} Nxc5 {[%emt
00:01:09] [%clk 00:12:37]} 21. Rxd8 {[%emt 00:00:41] [%clk 00:07:15]} Rexd8
{[%emt 00:00:01] [%clk 00:12:46]} 22. Qe1 {[%emt 00:02:59] [%clk 00:04:26]} Nxb3
{[%emt 00:00:19] [%clk 00:12:37]} 23. Rd1 {[%emt 00:00:05] [%clk 00:04:30]} Nd4
{[%emt 00:00:09] [%clk 00:12:39]} 24. Kh1 {[%emt 00:01:09] [%clk 00:03:31]} Nxe2
{[%emt 00:00:28] [%clk 00:12:21]} 25. Nxe2 {[%emt 00:01:19] [%clk 00:02:22]}
Bxa4 {[%emt 00:00:01] [%clk 00:12:30]} 26. Rxd8+ {[%emt 00:00:15] [%clk
00:02:17]} Rxd8 {[%clk 00:12:39]} 27. Qxa5 {[%clk 00:02:26]} Rd1+ {[%emt
00:00:06] [%clk 00:12:43]} 28. Ng1 {[%emt 00:00:02] [%clk 00:02:33]} Bd4 {[%emt
00:00:34] [%clk 00:12:20]} 29. h4 {[%emt 00:00:04] [%clk 00:02:39]} Bc6 {[%emt
00:01:49] [%clk 00:10:41]} 30. Qd8+ {[%emt 00:00:05] [%clk 00:02:43]} Kg7 {[%emt
00:00:05] [%clk 00:10:47]} 31. e5 {[%clk 00:02:52]} Rxg1+ {[%emt 00:01:46] [%clk
00:09:11]} 32. Kh2 {[%emt 00:00:01] [%clk 00:03:01]} Bc5 {[%emt 00:00:16] [%clk
00:09:05]} 0-1

[Site "Europe Echecs"]

[Event "Championnat d'Europe Rapide"]
[Date "2024.12.08"]
[White "Hamitevici, Vladimir"]
[Black "Fressinet, Laurent"]
[WhiteElo "2423"]
[BlackElo "2588"]
[Round "7.18"]
[Result "1/2-1/2"]
[TimeControl "900+10"]

1. Nf3 {[%emt 00:00:05] [%clk 00:15:14]} Nf6 {[%emt 00:00:15] [%clk 00:15:06]}
2. e3 {[%emt 00:00:18] [%clk 00:15:06]} g6 {[%emt 00:00:25] [%clk 00:14:52]} 3.
b3 {[%emt 00:00:01] [%clk 00:15:13]} Bg7 {[%emt 00:00:03] [%clk 00:14:59]} 4.
Bb2 {[%emt 00:00:01] [%clk 00:15:22]} c5 {[%emt 00:00:23] [%clk 00:14:47]} 5.
Be2 {[%emt 00:00:11] [%clk 00:15:21]} O-O {[%emt 00:00:24] [%clk 00:14:33]} 6.
O-O {[%emt 00:00:03] [%clk 00:15:28]} Nc6 {[%emt 00:00:13] [%clk 00:14:30]} 7.
c4 {[%emt 00:00:12] [%clk 00:15:25]} d6 {[%emt 00:00:24] [%clk 00:14:17]} 8. d4
{[%emt 00:00:12] [%clk 00:15:23]} Bf5 {[%emt 00:00:54] [%clk 00:13:32]} 9. Nh4
{[%emt 00:02:59] [%clk 00:12:34]} Bd7 {[%emt 00:00:08] [%clk 00:13:35]} 10. dxc5
{[%emt 00:00:43] [%clk 00:12:00]} dxc5 {[%emt 00:00:07] [%clk 00:13:39]} 11. Qc1
{[%emt 00:00:19] [%clk 00:11:51]} e5 {[%emt 00:01:10] [%clk 00:12:38]} 12. Rd1
{[%emt 00:02:49] [%clk 00:09:12]} e4 {[%emt 00:01:25] [%clk 00:11:23]} 13. Nc3
{[%emt 00:01:46] [%clk 00:07:37]} Qe7 {[%emt 00:00:29] [%clk 00:11:04]} 14. Nd5
{[%emt 00:01:33] [%clk 00:06:14]} Nxd5 {[%emt 00:00:22] [%clk 00:10:52]} 15.
Bxg7 {[%emt 00:00:02] [%clk 00:06:22]} Kxg7 {[%emt 00:00:25] [%clk 00:10:37]}
16. cxd5 {[%emt 00:00:01] [%clk 00:06:30]} Ne5 {[%emt 00:00:17] [%clk 00:10:31]}
17. Qc3 {[%emt 00:00:01] [%clk 00:06:39]} Qd6 {[%emt 00:01:24] [%clk 00:09:17]}
18. Rac1 {[%emt 00:00:44] [%clk 00:06:05]} b6 {[%emt 00:01:01] [%clk 00:08:27]}
19. f4 {[%emt 00:00:49] [%clk 00:05:25]} exf3 {[%emt 00:00:04] [%clk 00:08:33]}
20. Nxf3 {[%emt 00:00:19] [%clk 00:05:16]} Rae8 {[%emt 00:00:23] [%clk
00:08:20]} 21. b4 {[%emt 00:01:41] [%clk 00:03:45]} cxb4 {[%emt 00:01:21] [%clk
00:07:09]} 22. Qc7 {[%emt 00:00:01] [%clk 00:03:54]} Qe7 {[%emt 00:00:44] [%clk
00:06:35]} 23. Nxe5 {[%emt 00:01:14] [%clk 00:02:50]} Qxe5 {[%emt 00:00:04]
[%clk 00:06:41]} 24. Qxe5+ {[%emt 00:00:03] [%clk 00:02:57]} Rxe5 {[%emt
00:00:01] [%clk 00:06:49]} 25. Rc7 {[%emt 00:00:37] [%clk 00:02:31]} Rxe3 {[%emt
00:00:21] [%clk 00:06:38]} 26. Rd2 {[%emt 00:01:00] [%clk 00:01:41]} Rd8 {[%emt
00:01:32] [%clk 00:05:16]} 27. Rxa7 {[%emt 00:00:15] [%clk 00:01:36]} b3 {[%emt
00:00:55] [%clk 00:04:31]} 28. Kf2 {[%emt 00:01:18] [%clk 00:00:28]} Rc3 {[%emt
00:00:02] [%clk 00:04:39]} 29. axb3 {[%emt 00:00:01] [%clk 00:00:37]} Rxb3
{[%emt 00:00:01] [%clk 00:04:48]} 30. Rc2 {[%emt 00:00:21] [%clk 00:00:25]} Kf6
{[%emt 00:01:02] [%clk 00:03:57]} 31. Bf3 {[%emt 00:00:23] [%clk 00:00:12]} Ke5
{[%emt 00:00:19] [%clk 00:03:48]} 32. d6 {[%emt 00:00:05] [%clk 00:00:17]} Rd3
{[%emt 00:00:24] [%clk 00:03:33]} 33. Rb7 {[%emt 00:00:05] [%clk 00:00:23]} Rxd6
{[%emt 00:00:30] [%clk 00:03:13]} 34. Rb2 {[%emt 00:00:04] [%clk 00:00:29]} Be6
{[%emt 00:01:14] [%clk 00:02:09]} 35. R7xb6 {[%emt 00:00:04] [%clk 00:00:35]}
Rxb6 {[%emt 00:00:04] [%clk 00:02:15]} 36. Rxb6 {[%emt 00:00:01] [%clk
00:00:44]} Rd2+ {[%emt 00:00:10] [%clk 00:02:15]} 37. Ke3 {[%emt 00:00:22] [%clk
00:00:32]} Ra2 {[%emt 00:00:04] [%clk 00:02:20]} 38. Rb5+ {[%emt 00:00:04] [%clk
00:00:39]} Kf6 {[%emt 00:00:08] [%clk 00:02:21]} 39. h4 {[%emt 00:00:02] [%clk
00:00:47]} h6 {[%emt 00:00:11] [%clk 00:02:20]} 40. Rc5 {[%emt 00:00:33] [%clk
00:00:24]} g5 {[%emt 00:00:12] [%clk 00:02:19]} 41. hxg5+ {[%emt 00:00:02] [%clk
00:00:32]} hxg5 {[%emt 00:00:01] [%clk 00:02:28]} 42. Be4 {[%emt 00:00:23] [%clk
00:00:19]} Ra3+ {[%emt 00:00:17] [%clk 00:02:21]} 43. Kf2 {[%emt 00:00:13] [%clk
00:00:16]} g4 {[%emt 00:00:01] [%clk 00:02:30]} 44. g3 {[%emt 00:00:08] [%clk
00:00:18]} Ke7 {[%emt 00:00:02] [%clk 00:02:38]} 45. Rb5 {[%emt 00:00:14] [%clk
00:00:14]} f5 {[%emt 00:00:14] [%clk 00:02:33]} 46. Bd5 {[%emt 00:00:06] [%clk
00:00:18]} Bd7 {[%emt 00:00:03] [%clk 00:02:40]} 47. Rb6 {[%emt 00:00:08] [%clk
00:00:20]} Kd8 {[%emt 00:00:20] [%clk 00:02:30]} 48. Rf6 {[%emt 00:00:14] [%clk
00:00:16]} Rd3 {[%emt 00:00:08] [%clk 00:02:33]} 49. Bg2 {[%emt 00:00:11] [%clk
00:00:15]} Rd2+ {[%emt 00:00:09] [%clk 00:02:34]} 50. Kg1 {[%emt 00:00:02] [%clk
00:00:22]} Ke7 {[%emt 00:00:02] [%clk 00:02:43]} 51. Rb6 {[%emt 00:00:02] [%clk
00:00:29]} Be6 {[%emt 00:00:02] [%clk 00:02:52]} 52. Rb4 {[%emt 00:00:08] [%clk
00:00:31]} Kf6 {[%emt 00:00:11] [%clk 00:02:51]} 53. Rf4 {[%emt 00:00:09] [%clk
00:00:31]} Ke5 {[%emt 00:00:24] [%clk 00:02:38]} 54. Ba8 {[%emt 00:00:04] [%clk
00:00:36]} Bb3 {[%emt 00:00:08] [%clk 00:02:41]} 55. Bg2 {[%emt 00:00:09] [%clk
00:00:36]} Bc2 {[%emt 00:00:10] [%clk 00:02:42]} 56. Bb7 {[%emt 00:00:15] [%clk
00:00:30]} Re2 {[%emt 00:00:27] [%clk 00:02:25]} 57. Bc6 {[%emt 00:00:17] [%clk
00:00:23]} Bd3 {[%emt 00:00:10] [%clk 00:02:25]} 58. Bb7 {[%emt 00:00:10] [%clk
00:00:24]} Rb2 {[%emt 00:00:03] [%clk 00:02:31]} 59. Bc6 {[%emt 00:00:07] [%clk
00:00:27]} Rb1+ {[%emt 00:00:03] [%clk 00:02:39]} 60. Kg2 {[%emt 00:00:07] [%clk
00:00:30]} Rb6 {[%emt 00:00:31] [%clk 00:02:18]} 61. Ba8 {[%emt 00:00:05] [%clk
00:00:35]} Rb3 {[%emt 00:00:59] [%clk 00:01:29]} 62. Kf2 {[%emt 00:00:21] [%clk
00:00:24]} Bb5 {[%emt 00:00:09] [%clk 00:01:30]} 63. Bg2 {[%emt 00:00:06] [%clk
00:00:28]} Bd3 {[%emt 00:00:06] [%clk 00:01:34]} 64. Ba8 {[%emt 00:00:06] [%clk
00:00:31]} Kf6 {[%emt 00:00:29] [%clk 00:01:16]} 65. Bg2 {[%emt 00:00:04] [%clk
00:00:37]} Kg5 {[%emt 00:00:05] [%clk 00:01:21]} 66. Bd5 {[%emt 00:00:02] [%clk
00:00:44]} Rb2+ {[%emt 00:00:05] [%clk 00:01:26]} 67. Kg1 {[%emt 00:00:02] [%clk
00:00:52]} Re2 {[%emt 00:00:02] [%clk 00:01:34]} 68. Rd4 {[%emt 00:00:23] [%clk
00:00:39]} Bb1 {[%emt 00:00:18] [%clk 00:01:26]} 69. Kf1 {[%emt 00:00:07] [%clk
00:00:42]} Re7 {[%emt 00:00:16] [%clk 00:01:21]} 70. Kf2 {[%emt 00:00:04] [%clk
00:00:48]} Ra7 {[%emt 00:00:18] [%clk 00:01:13]} 71. Rb4 {[%emt 00:00:09] [%clk
00:00:49]} Bd3 {[%emt 00:00:09] [%clk 00:01:13]} 72. Rd4 {[%emt 00:00:15] [%clk
00:00:44]} Ra3 {[%emt 00:00:02] [%clk 00:01:22]} 73. Bc6 {[%emt 00:00:07] [%clk
00:00:46]} Kf6 {[%emt 00:00:06] [%clk 00:01:26]} 74. Rf4 {[%emt 00:00:12] [%clk
00:00:44]} Ke5 {[%emt 00:00:04] [%clk 00:01:33]} 75. Bg2 {[%emt 00:00:03] [%clk
00:00:50]} Ra2+ {[%emt 00:00:06] [%clk 00:01:38]} 76. Kg1 {[%emt 00:00:02] [%clk
00:00:58]} Be4 {[%emt 00:00:09] [%clk 00:01:39]} 77. Bxe4 {[%emt 00:00:14] [%clk
00:00:54]} fxe4 {[%emt 00:00:02] [%clk 00:01:47]} 78. Rxg4 {[%emt 00:00:12]
[%clk 00:00:51]} Kd4 {[%clk 00:01:56]} 79. Rg8 {[%emt 00:00:17] [%clk 00:00:44]}
Kd3 {[%emt 00:00:13] [%clk 00:01:53]} 80. Rd8+ {[%emt 00:00:18] [%clk 00:00:37]}
Ke3 {[%clk 00:02:01]} 81. g4 {[%emt 00:00:06] [%clk 00:00:41]} Ke2 {[%emt
00:01:18] [%clk 00:00:54]} 82. Kg2 {[%emt 00:00:29] [%clk 00:00:22]} e3 {[%emt
00:00:01] [%clk 00:01:03]} 83. Re8 {[%emt 00:00:19] [%clk 00:00:13]} Ra3 {[%emt
00:00:33] [%clk 00:00:40]} 84. Re5 {[%emt 00:00:09] [%clk 00:00:13]} Kd2 {[%emt
00:00:09] [%clk 00:00:42]} 85. g5 {[%emt 00:00:04] [%clk 00:00:18]} Ra8 {[%emt
00:00:35] [%clk 00:00:18]} 86. Rd5+ {[%emt 00:00:06] [%clk 00:00:22]} Ke1 {[%emt
00:00:09] [%clk 00:00:18]} 87. Kf3 {[%emt 00:00:19] [%clk 00:00:14]} e2 {[%emt
00:00:03] [%clk 00:00:25]} 88. Re5 {[%emt 00:00:02] [%clk 00:00:22]} Kf1 {[%emt
00:00:16] [%clk 00:00:19]} 89. Rxe2 {[%emt 00:00:04] [%clk 00:00:28]} Rf8+
{[%clk 00:00:28]} 90. Kg4 {[%emt 00:00:02] [%clk 00:00:35]} Kxe2 {[%emt
00:00:02] [%clk 00:00:36]} 91. g6 {[%emt 00:00:02] [%clk 00:00:43]} Rf1 {[%emt
00:00:13] [%clk 00:00:33]} 92. Kh5 {[%emt 00:00:15] [%clk 00:00:39]} Kf3 {[%emt
00:00:09] [%clk 00:00:34]} 93. Kh6 {[%emt 00:00:23] [%clk 00:00:26]} Rh1+ {[%emt
00:00:13] [%clk 00:00:31]} 94. Kg7 {[%emt 00:00:02] [%clk 00:00:34]} Kg4 {[%emt
00:00:07] [%clk 00:00:34]} 95. Kf8 {[%emt 00:00:15] [%clk 00:00:28]} Rf1+ {[%emt
00:00:03] [%clk 00:00:42]} 96. Ke8 {[%emt 00:00:08] [%clk 00:00:30]} Re1+ {[%emt
00:00:29] [%clk 00:00:23]} 97. Kf8 {[%emt 00:00:02] [%clk 00:00:38]} Ra1 {[%emt
00:00:17] [%clk 00:00:16]} 98. g7 {[%emt 00:00:02] [%clk 00:00:45]} Ra8+ {[%emt
00:00:04] [%clk 00:00:22]} 99. Kf7 {[%emt 00:00:02] [%clk 00:00:53]} Ra7+ {[%emt
00:00:02] [%clk 00:00:31]} 100. Kf8 {[%emt 00:00:01] [%clk 00:01:01]} Rxg7
{[%emt 00:00:01] [%clk 00:00:40]} 101. Kxg7 {[%emt 00:00:01] [%clk 00:15:10]}
1/2-1/2

[Site "Europe Echecs"]

[Event "Championnat d'Europe Rapide"]
[Date "2024.12.08"]
[White "Lagarde, Maxime"]
[Black "Subelj, Jan"]
[WhiteElo "2600"]
[BlackElo "2526"]
[Round "7.19"]
[Result "1/2-1/2"]
[TimeControl "900+10"]

1. e4 {[%emt 00:00:01] [%clk 00:15:18]} e5 {[%emt 00:00:06] [%clk 00:15:16]} 2.
Nf3 {[%clk 00:15:25]} Nc6 {[%emt 00:00:01] [%clk 00:15:24]} 3. Bb5 {[%emt
00:00:02] [%clk 00:15:34]} a6 {[%emt 00:00:06] [%clk 00:15:28]} 4. Ba4 {[%emt
00:00:01] [%clk 00:15:43]} Nf6 {[%emt 00:00:03] [%clk 00:15:35]} 5. Nc3 {[%emt
00:00:23] [%clk 00:15:30]} Be7 {[%emt 00:00:12] [%clk 00:15:33]} 6. Bxc6 {[%emt
00:00:18] [%clk 00:15:22]} dxc6 {[%emt 00:00:01] [%clk 00:15:41]} 7. d3 {[%emt
00:00:05] [%clk 00:15:27]} Bd6 {[%emt 00:02:06] [%clk 00:13:46]} 8. Be3 {[%emt
00:02:14] [%clk 00:13:23]} Qe7 {[%emt 00:01:57] [%clk 00:11:59]} 9. h3 {[%emt
00:00:28] [%clk 00:13:05]} Be6 {[%emt 00:00:56] [%clk 00:11:12]} 10. a3 {[%emt
00:01:51] [%clk 00:11:24]} h6 {[%emt 00:01:35] [%clk 00:09:47]} 11. Qd2 {[%emt
00:00:45] [%clk 00:10:50]} Nd7 {[%emt 00:00:33] [%clk 00:09:24]} 12. Ne2 {[%emt
00:01:09] [%clk 00:09:51]} c5 {[%emt 00:01:58] [%clk 00:07:36]} 13. Ng3 {[%emt
00:00:52] [%clk 00:09:08]} O-O-O {[%emt 00:00:05] [%clk 00:07:42]} 14. b4 {[%emt
00:01:21] [%clk 00:07:58]} cxb4 {[%emt 00:01:12] [%clk 00:06:39]} 15. axb4
{[%emt 00:00:01] [%clk 00:08:07]} Bxb4 {[%emt 00:00:02] [%clk 00:06:47]} 16. c3
{[%clk 00:08:16]} Bc5 {[%emt 00:00:02] [%clk 00:06:55]} 17. O-O {[%emt 00:00:09]
[%clk 00:08:17]} Nb6 {[%emt 00:01:40] [%clk 00:05:26]} 18. Rfb1 {[%emt 00:01:51]
[%clk 00:06:35]} Nc4 {[%emt 00:00:40] [%clk 00:04:56]} 19. Bxc5 {[%emt 00:00:10]
[%clk 00:06:35]} Qxc5 {[%emt 00:00:15] [%clk 00:04:50]} 20. Qe2 {[%emt 00:00:02]
[%clk 00:06:43]} Nb6 {[%emt 00:00:02] [%clk 00:04:59]} 21. d4 {[%emt 00:00:10]
[%clk 00:06:43]} Qc4 {[%emt 00:00:29] [%clk 00:04:40]} 22. Qe3 {[%emt 00:00:01]
[%clk 00:06:52]} f6 {[%emt 00:01:01] [%clk 00:03:49]} 23. d5 {[%emt 00:00:02]
[%clk 00:06:59]} Bxd5 {[%emt 00:00:02] [%clk 00:03:58]} 24. exd5 {[%emt
00:00:23] [%clk 00:06:47]} Rxd5 {[%emt 00:00:17] [%clk 00:03:50]} 25. Rb4 {[%emt
00:01:00] [%clk 00:05:57]} Qd3 {[%emt 00:00:08] [%clk 00:03:52]} 26. c4 {[%emt
00:00:57] [%clk 00:05:09]} Qxe3 {[%emt 00:00:02] [%clk 00:04:00]} 27. fxe3
{[%emt 00:00:01] [%clk 00:05:18]} Rd3 {[%emt 00:01:05] [%clk 00:03:04]} 28. Rab1
{[%emt 00:00:06] [%clk 00:05:22]} Rhd8 {[%emt 00:00:16] [%clk 00:02:59]} 29. Nf5
{[%emt 00:00:48] [%clk 00:04:44]} Rd1+ {[%emt 00:00:09] [%clk 00:03:00]} 30. Kf2
{[%emt 00:00:06] [%clk 00:04:48]} a5 {[%emt 00:01:00] [%clk 00:02:10]} 31. Rb5
{[%emt 00:00:13] [%clk 00:04:46]} Rxb1 {[%emt 00:00:02] [%clk 00:02:17]} 32.
Rxb1 {[%emt 00:00:01] [%clk 00:04:54]} Nxc4 {[%emt 00:00:02] [%clk 00:02:26]}
33. Nxg7 {[%emt 00:00:42] [%clk 00:04:23]} c6 {[%clk 00:02:35]} 34. Ne6 {[%emt
00:00:22] [%clk 00:04:11]} Rd5 {[%emt 00:00:12] [%clk 00:02:32]} 35. e4 {[%emt
00:00:40] [%clk 00:03:41]} Rd6 {[%emt 00:00:01] [%clk 00:02:41]} 36. Nc5 {[%emt
00:00:02] [%clk 00:03:50]} b6 {[%emt 00:00:09] [%clk 00:02:42]} 37. Na4 {[%emt
00:00:39] [%clk 00:03:21]} Kc7 {[%emt 00:00:04] [%clk 00:02:48]} 38. Ke2 {[%emt
00:00:29] [%clk 00:03:01]} b5 {[%emt 00:00:14] [%clk 00:02:45]} 39. Nc5 {[%emt
00:00:06] [%clk 00:03:05]} Kb6 {[%emt 00:00:02] [%clk 00:02:53]} 40. Na4+ {[%emt
00:00:01] [%clk 00:03:14]} Kc7 {[%emt 00:00:01] [%clk 00:03:01]} 41. Nc5 {[%emt
00:00:37] [%clk 00:02:47]} Kb6 {[%emt 00:00:20] [%clk 00:02:52]} 42. Na4+ {[%emt
00:00:02] [%clk 00:02:55]} Kc7 {[%emt 00:00:05] [%clk 00:02:57]} 1/2-1/2

[Site "Europe Echecs"]

[Event "Championnat d'Europe Rapide"]
[Date "2024.12.08"]
[White "Kuzubov, Yuriy"]
[Black "Samunenkov, Ihor"]
[WhiteElo "2595"]
[BlackElo "2543"]
[Round "7.20"]
[Result "1/2-1/2"]
[TimeControl "900+10"]

1. c4 {[%clk 00:15:17]} c5 {[%emt 00:00:09] [%clk 00:15:12]} 2. Nf3 {[%emt
00:00:03] [%clk 00:15:23]} Nc6 {[%emt 00:00:05] [%clk 00:15:18]} 3. Nc3 {[%emt
00:00:21] [%clk 00:15:11]} Nf6 {[%emt 00:00:26] [%clk 00:15:02]} 4. e3 {[%emt
00:00:26] [%clk 00:14:55]} e5 {[%emt 00:00:23] [%clk 00:14:50]} 5. Be2 {[%emt
00:01:58] [%clk 00:13:06]} d5 {[%emt 00:00:35] [%clk 00:14:25]} 6. cxd5 {[%emt
00:00:05] [%clk 00:13:11]} Nxd5 {[%emt 00:00:04] [%clk 00:14:31]} 7. O-O {[%emt
00:00:43] [%clk 00:12:38]} Nc7 {[%emt 00:04:09] [%clk 00:10:33]} 8. a3 {[%emt
00:01:01] [%clk 00:11:47]} Be7 {[%emt 00:01:25] [%clk 00:09:18]} 9. Qc2 {[%emt
00:00:06] [%clk 00:11:50]} O-O {[%emt 00:00:37] [%clk 00:08:51]} 10. Ne4 {[%emt
00:00:33] [%clk 00:11:27]} b6 {[%emt 00:02:59] [%clk 00:06:02]} 11. b4 {[%emt
00:01:37] [%clk 00:10:00]} f5 {[%emt 00:00:18] [%clk 00:05:54]} 12. Ng3 {[%emt
00:00:09] [%clk 00:10:01]} e4 {[%emt 00:00:27] [%clk 00:05:37]} 13. Ne1 {[%emt
00:00:11] [%clk 00:10:00]} Qd6 {[%emt 00:02:35] [%clk 00:03:12]} 14. d3 {[%emt
00:01:42] [%clk 00:08:29]} exd3 {[%emt 00:00:25] [%clk 00:02:57]} 15. Nxd3
{[%emt 00:00:34] [%clk 00:08:04]} cxb4 {[%emt 00:00:29] [%clk 00:02:38]} 16.
Nxb4 {[%emt 00:03:27] [%clk 00:04:48]} Nxb4 {[%emt 00:00:38] [%clk 00:02:10]}
17. axb4 {[%emt 00:00:02] [%clk 00:04:55]} Bf6 {[%emt 00:00:18] [%clk 00:02:02]}
18. Rd1 {[%emt 00:01:02] [%clk 00:04:04]} Qe7 {[%emt 00:00:08] [%clk 00:02:04]}
19. Ra2 {[%emt 00:01:19] [%clk 00:02:55]} g6 {[%emt 00:00:42] [%clk 00:01:32]}
20. Bf3 {[%emt 00:00:50] [%clk 00:02:14]} Be6 {[%emt 00:00:22] [%clk 00:01:20]}
21. Bxa8 {[%emt 00:00:35] [%clk 00:01:50]} Rxa8 {[%emt 00:00:04] [%clk
00:01:27]} 22. Ra3 {[%emt 00:00:36] [%clk 00:01:23]} Nb5 {[%emt 00:00:44] [%clk
00:00:53]} 23. Qc6 {[%emt 00:00:55] [%clk 00:00:38]} Qe8 {[%emt 00:00:03] [%clk
00:01:00]} 24. Qxe8+ {[%emt 00:00:04] [%clk 00:00:44]} Rxe8 {[%emt 00:00:04]
[%clk 00:01:07]} 25. Rad3 {[%emt 00:00:06] [%clk 00:00:48]} Rc8 {[%emt 00:00:22]
[%clk 00:00:55]} 26. Bd2 {[%emt 00:00:17] [%clk 00:00:40]} Bc4 {[%emt 00:00:23]
[%clk 00:00:41]} 27. Rd7 {[%emt 00:00:29] [%clk 00:00:21]} Be6 {[%emt 00:00:12]
[%clk 00:00:39]} 28. Rd3 {[%emt 00:00:06] [%clk 00:00:25]} Bc4 {[%emt 00:00:03]
[%clk 00:00:46]} 29. Rd7 {[%emt 00:00:15] [%clk 00:00:20]} Be6 {[%emt 00:00:03]
[%clk 00:00:52]} 30. Rd3 {[%emt 00:00:09] [%clk 00:00:21]} 1/2-1/2

[Site "Europe Echecs"]